Workbook

Sheet TOOL
D2: E-Quartiere-Mobilitätstypologien
D4: Berechnungstool Dimensionierungsempfehlung Carsharing-Standorte
D6: Felder mit anzupassenden Annahmen, bei Anwahl der Zellen erscheint ein Infotext
D9: Lage | G9: =SUM(G16,G26:G29) -> 0
D12: Bestehende Rahmenbedingungen
E14: Statistisches Gebiet | G14: Faktor
G16: =IFERROR((VLOOKUP(E16,'Daten Lagefaktor'!D4:E945,2,FALSE)),"") ->  | I16: =IFERROR((VLOOKUP(E16,'Daten Lagefaktor'!D4:H945,4,FALSE)),"") -> 
E18: Hier klicken, um die Nummer des Statistischen Gebietes herauszufinden
D22: Geplante Rahmenbedingungen
E24: Geplante Maßnahmen
G26: =IFERROR((VLOOKUP(E26,'Daten Lagefaktor'!$J$3:$K$7,2,FALSE)),0) -> 0 | H26: =IF(G9<=100,"ACHTUNG: Das ausgewählte Statistische Gebiet hat einen unterdurchschnittlichen Lagefaktor, wodurch die Implementierung einer Carsharing-Station ohne weitere Maßnahmen nur bedingt sinnvoll ist.","") -> ACHTUNG: Das ausgewählte Statistische Gebiet hat einen unterdurchschnittlichen Lagefaktor, wodurch die Implementierung einer Carsharing-Station ohne weitere Maßnahmen nur bedingt sinnvoll ist.
G27: =IFERROR((VLOOKUP(E27,'Daten Lagefaktor'!$J$3:$K$7,2,FALSE)),0) -> 0
G28: =IFERROR((VLOOKUP(E28,'Daten Lagefaktor'!$J$3:$K$7,2,FALSE)),0) -> 0 | H28: =IF(G9<=100,"Denken Sie darüber nach, weitere geplante Maßnahmen zu ergreifen und diese unter Geplante Rahmenbedingungen zu bestimmen.","") -> Denken Sie darüber nach, weitere geplante Maßnahmen zu ergreifen und diese unter Geplante Rahmenbedingungen zu bestimmen.
G29: =IFERROR((VLOOKUP(E29,'Daten Lagefaktor'!$J$3:$K$7,2,FALSE)),0) -> 0
D37: Bevölkerungsstruktur | G37: =SUM(X57,X70) -> 0 | H37: CS-Fz. bei 15 Nutzern je CS-Fz. | M37: =SUM(Y57,Y70) -> 0 | N37: CS-Fz. bei 45 Nutzern je CS-Fz.
D40: Typische Wohnformen
E42: Anzahl der Wohneinheiten | G42: Wohnungsgröße | I42: Wohnungstyp | L42: Belegungsdichte | O42: Haushalts-typ | Q42: Anzahl Einwohner | S42: Anteil CS-Nutzer | U42: Nutzer je CS-Fz.
E44: 0 | G44: 1-2 Zimmer-Wohnung (< 60 m²) | H44: =IFERROR((VLOOKUP(G44,'Daten Bewohnerstruktur'!$B$3:$C$8,2,FALSE)),"") -> 1 | I44: Gefördert | J44: =IFERROR((VLOOKUP(I44,'Daten Bewohnerstruktur'!$F$3:$G$6,2,FALSE)),"") -> 10 | K44: =SUM(H44,J44) -> 11 | L44: =IFERROR((VLOOKUP(K44,'Daten Bewohnerstruktur'!$J$4:$K$18,2,FALSE)),"") -> 1.5 | M44: =IFERROR((VLOOKUP(K44,'Daten Bewohnerstruktur'!$J$4:$L$18,3,FALSE)),"") -> Personen | O44: =IFERROR((VLOOKUP(L44,'Daten Bewohnerstruktur'!$M$4:$N$15,2,FALSE)),"") -> Paar | P44: =IFERROR((VLOOKUP(O44,'Daten Bewohnerstruktur'!$N$4:$O$14,2,FALSE)),"") -> 2 | Q44: =IFERROR(((SUM(E44*L44))),"") -> 0 | R44: =SUM(P44,J44) -> 12 | S44: =IFERROR(((VLOOKUP(R44,'Daten Bewohnerstruktur'!$Q$3:$R$12,2,FALSE))),"") -> 0.024 | U44: =IFERROR(((VLOOKUP(R44,'Daten Bewohnerstruktur'!$Q$3:$U$12,3,FALSE))),"") -> 15 | V44: =IFERROR(((VLOOKUP(R44,'Daten Bewohnerstruktur'!$Q$3:$U$12,4,FALSE))),"") -> - | W44: =IFERROR(((VLOOKUP(R44,'Daten Bewohnerstruktur'!$Q$3:$U$12,5,FALSE))),"") -> 45 | X44: =IFERROR(((SUM(Q44*S44/U44))),"") -> 0 | Y44: =IFERROR(((SUM(Q44*S44/W44))),"") -> 0
E45: 0 | G45: 3 Zimmer-Wohnung (60 - 85 m²) | H45: =IFERROR((VLOOKUP(G45,'Daten Bewohnerstruktur'!$B$3:$C$8,2,FALSE)),"") -> 2 | I45: Gefördert | J45: =IFERROR((VLOOKUP(I45,'Daten Bewohnerstruktur'!$F$3:$G$6,2,FALSE)),"") -> 10 | K45: =SUM(H45,J45) -> 12 | L45: =IFERROR((VLOOKUP(K45,'Daten Bewohnerstruktur'!$J$4:$K$18,2,FALSE)),"") -> 2.2 | M45: =IFERROR((VLOOKUP(K45,'Daten Bewohnerstruktur'!$J$4:$L$18,3,FALSE)),"") -> Personen | O45: =IFERROR((VLOOKUP(L45,'Daten Bewohnerstruktur'!$M$4:$N$15,2,FALSE)),"") -> Paar | P45: =IFERROR((VLOOKUP(O45,'Daten Bewohnerstruktur'!$N$4:$O$14,2,FALSE)),"") -> 2 | Q45: =IFERROR(((SUM(E45*L45))),"") -> 0 | R45: =SUM(P45,J45) -> 12 | S45: =IFERROR(((VLOOKUP(R45,'Daten Bewohnerstruktur'!$Q$3:$R$12,2,FALSE))),"") -> 0.024 | U45: =IFERROR(((VLOOKUP(R45,'Daten Bewohnerstruktur'!$Q$3:$U$12,3,FALSE))),"") -> 15 | V45: =IFERROR(((VLOOKUP(R45,'Daten Bewohnerstruktur'!$Q$3:$U$12,4,FALSE))),"") -> - | W45: =IFERROR(((VLOOKUP(R45,'Daten Bewohnerstruktur'!$Q$3:$U$12,5,FALSE))),"") -> 45 | X45: =IFERROR(((SUM(Q45*S45/U45))),"") -> 0 | Y45: =IFERROR(((SUM(Q45*S45/W45))),"") -> 0
E46: 0 | G46: 4 Zimmer-Wohnung (85 - 95 m²) | H46: =IFERROR((VLOOKUP(G46,'Daten Bewohnerstruktur'!$B$3:$C$8,2,FALSE)),"") -> 3 | I46: Gefördert | J46: =IFERROR((VLOOKUP(I46,'Daten Bewohnerstruktur'!$F$3:$G$6,2,FALSE)),"") -> 10 | K46: 13 | L46: =IFERROR((VLOOKUP(K46,'Daten Bewohnerstruktur'!$J$4:$K$18,2,FALSE)),"") -> 3.7 | M46: =IFERROR((VLOOKUP(K46,'Daten Bewohnerstruktur'!$J$4:$L$18,3,FALSE)),"") -> Personen | O46: =IFERROR((VLOOKUP(L46,'Daten Bewohnerstruktur'!$M$4:$N$15,2,FALSE)),"") -> Familie | P46: =IFERROR((VLOOKUP(O46,'Daten Bewohnerstruktur'!$N$4:$O$14,2,FALSE)),"") -> 3 | Q46: 0 | R46: 13 | S46: =IFERROR(((VLOOKUP(R46,'Daten Bewohnerstruktur'!$Q$3:$R$12,2,FALSE))),"") -> 0.015 | U46: =IFERROR(((VLOOKUP(R46,'Daten Bewohnerstruktur'!$Q$3:$U$12,3,FALSE))),"") -> 15 | V46: =IFERROR(((VLOOKUP(R46,'Daten Bewohnerstruktur'!$Q$3:$U$12,4,FALSE))),"") -> - | W46: =IFERROR(((VLOOKUP(R46,'Daten Bewohnerstruktur'!$Q$3:$U$12,5,FALSE))),"") -> 45 | X46: 0 | Y46: 0
E47: 0 | G47: 5 (+) Zimmer-Wohnung (> 105 m²) | H47: =IFERROR((VLOOKUP(G47,'Daten Bewohnerstruktur'!$B$3:$C$8,2,FALSE)),"") -> 4 | I47: Gefördert | J47: =IFERROR((VLOOKUP(I47,'Daten Bewohnerstruktur'!$F$3:$G$6,2,FALSE)),"") -> 10 | K47: 14 | L47: =IFERROR((VLOOKUP(K47,'Daten Bewohnerstruktur'!$J$4:$K$18,2,FALSE)),"") -> 5.2 | M47: =IFERROR((VLOOKUP(K47,'Daten Bewohnerstruktur'!$J$4:$L$18,3,FALSE)),"") -> Personen | O47: =IFERROR((VLOOKUP(L47,'Daten Bewohnerstruktur'!$M$4:$N$15,2,FALSE)),"") -> Familie | P47: =IFERROR((VLOOKUP(O47,'Daten Bewohnerstruktur'!$N$4:$O$14,2,FALSE)),"") -> 3 | Q47: 0 | R47: 13 | S47: =IFERROR(((VLOOKUP(R47,'Daten Bewohnerstruktur'!$Q$3:$R$12,2,FALSE))),"") -> 0.015 | U47: =IFERROR(((VLOOKUP(R47,'Daten Bewohnerstruktur'!$Q$3:$U$12,3,FALSE))),"") -> 15 | V47: =IFERROR(((VLOOKUP(R47,'Daten Bewohnerstruktur'!$Q$3:$U$12,4,FALSE))),"") -> - | W47: =IFERROR(((VLOOKUP(R47,'Daten Bewohnerstruktur'!$Q$3:$U$12,5,FALSE))),"") -> 45 | X47: 0 | Y47: 0
E48: 0 | G48: 1-2 Zimmer-Wohnung (< 60 m²) | H48: =IFERROR((VLOOKUP(G48,'Daten Bewohnerstruktur'!$B$3:$C$8,2,FALSE)),"") -> 1 | I48: Frei finanziert | J48: =IFERROR((VLOOKUP(I48,'Daten Bewohnerstruktur'!$F$3:$G$6,2,FALSE)),"") -> 20 | K48: 21 | L48: =IFERROR((VLOOKUP(K48,'Daten Bewohnerstruktur'!$J$4:$K$18,2,FALSE)),"") -> 1.3 | M48: =IFERROR((VLOOKUP(K48,'Daten Bewohnerstruktur'!$J$4:$L$18,3,FALSE)),"") -> Personen | O48: =IFERROR((VLOOKUP(L48,'Daten Bewohnerstruktur'!$M$4:$N$15,2,FALSE)),"") -> Single | P48: =IFERROR((VLOOKUP(O48,'Daten Bewohnerstruktur'!$N$4:$O$14,2,FALSE)),"") -> 1 | Q48: 0 | R48: 21 | S48: =IFERROR(((VLOOKUP(R48,'Daten Bewohnerstruktur'!$Q$3:$R$12,2,FALSE))),"") -> 0.087 | U48: =IFERROR(((VLOOKUP(R48,'Daten Bewohnerstruktur'!$Q$3:$U$12,3,FALSE))),"") -> 15 | V48: =IFERROR(((VLOOKUP(R48,'Daten Bewohnerstruktur'!$Q$3:$U$12,4,FALSE))),"") -> - | W48: =IFERROR(((VLOOKUP(R48,'Daten Bewohnerstruktur'!$Q$3:$U$12,5,FALSE))),"") -> 45 | X48: 0 | Y48: 0
E49: 0 | G49: 3 Zimmer-Wohnung (60 - 85 m²) | H49: =IFERROR((VLOOKUP(G49,'Daten Bewohnerstruktur'!$B$3:$C$8,2,FALSE)),"") -> 2 | I49: Frei finanziert | J49: =IFERROR((VLOOKUP(I49,'Daten Bewohnerstruktur'!$F$3:$G$6,2,FALSE)),"") -> 20 | K49: 22 | L49: =IFERROR((VLOOKUP(K49,'Daten Bewohnerstruktur'!$J$4:$K$18,2,FALSE)),"") -> 1.9 | M49: =IFERROR((VLOOKUP(K49,'Daten Bewohnerstruktur'!$J$4:$L$18,3,FALSE)),"") -> Personen | O49: =IFERROR((VLOOKUP(L49,'Daten Bewohnerstruktur'!$M$4:$N$15,2,FALSE)),"") -> Paar | P49: =IFERROR((VLOOKUP(O49,'Daten Bewohnerstruktur'!$N$4:$O$14,2,FALSE)),"") -> 2 | Q49: 0 | R49: 22 | S49: =IFERROR(((VLOOKUP(R49,'Daten Bewohnerstruktur'!$Q$3:$R$12,2,FALSE))),"") -> 0.08 | U49: =IFERROR(((VLOOKUP(R49,'Daten Bewohnerstruktur'!$Q$3:$U$12,3,FALSE))),"") -> 15 | V49: =IFERROR(((VLOOKUP(R49,'Daten Bewohnerstruktur'!$Q$3:$U$12,4,FALSE))),"") -> - | W49: =IFERROR(((VLOOKUP(R49,'Daten Bewohnerstruktur'!$Q$3:$U$12,5,FALSE))),"") -> 45 | X49: 0 | Y49: 0
E50: 0 | G50: 4 Zimmer-Wohnung (85 - 95 m²) | H50: =IFERROR((VLOOKUP(G50,'Daten Bewohnerstruktur'!$B$3:$C$8,2,FALSE)),"") -> 3 | I50: Frei finanziert | J50: =IFERROR((VLOOKUP(I50,'Daten Bewohnerstruktur'!$F$3:$G$6,2,FALSE)),"") -> 20 | K50: 23 | L50: =IFERROR((VLOOKUP(K50,'Daten Bewohnerstruktur'!$J$4:$K$18,2,FALSE)),"") -> 3.2 | M50: =IFERROR((VLOOKUP(K50,'Daten Bewohnerstruktur'!$J$4:$L$18,3,FALSE)),"") -> Personen | O50: =IFERROR((VLOOKUP(L50,'Daten Bewohnerstruktur'!$M$4:$N$15,2,FALSE)),"") -> Familie | P50: =IFERROR((VLOOKUP(O50,'Daten Bewohnerstruktur'!$N$4:$O$14,2,FALSE)),"") -> 3 | Q50: 0 | R50: 23 | S50: =IFERROR(((VLOOKUP(R50,'Daten Bewohnerstruktur'!$Q$3:$R$12,2,FALSE))),"") -> 0.05 | U50: =IFERROR(((VLOOKUP(R50,'Daten Bewohnerstruktur'!$Q$3:$U$12,3,FALSE))),"") -> 15 | V50: =IFERROR(((VLOOKUP(R50,'Daten Bewohnerstruktur'!$Q$3:$U$12,4,FALSE))),"") -> - | W50: =IFERROR(((VLOOKUP(R50,'Daten Bewohnerstruktur'!$Q$3:$U$12,5,FALSE))),"") -> 45 | X50: 0 | Y50: 0
E51: 0 | G51: 5 (+) Zimmer-Wohnung (> 105 m²) | H51: =IFERROR((VLOOKUP(G51,'Daten Bewohnerstruktur'!$B$3:$C$8,2,FALSE)),"") -> 4 | I51: Frei finanziert | J51: =IFERROR((VLOOKUP(I51,'Daten Bewohnerstruktur'!$F$3:$G$6,2,FALSE)),"") -> 20 | K51: 24 | L51: =IFERROR((VLOOKUP(K51,'Daten Bewohnerstruktur'!$J$4:$K$18,2,FALSE)),"") -> 4.5 | M51: =IFERROR((VLOOKUP(K51,'Daten Bewohnerstruktur'!$J$4:$L$18,3,FALSE)),"") -> Personen | O51: =IFERROR((VLOOKUP(L51,'Daten Bewohnerstruktur'!$M$4:$N$15,2,FALSE)),"") -> Familie | P51: =IFERROR((VLOOKUP(O51,'Daten Bewohnerstruktur'!$N$4:$O$14,2,FALSE)),"") -> 3 | Q51: 0 | R51: 23 | S51: =IFERROR(((VLOOKUP(R51,'Daten Bewohnerstruktur'!$Q$3:$R$12,2,FALSE))),"") -> 0.05 | U51: =IFERROR(((VLOOKUP(R51,'Daten Bewohnerstruktur'!$Q$3:$U$12,3,FALSE))),"") -> 15 | V51: =IFERROR(((VLOOKUP(R51,'Daten Bewohnerstruktur'!$Q$3:$U$12,4,FALSE))),"") -> - | W51: =IFERROR(((VLOOKUP(R51,'Daten Bewohnerstruktur'!$Q$3:$U$12,5,FALSE))),"") -> 45 | X51: 0 | Y51: 0
E52: 0 | G52: 1-2 Zimmer-Wohnung (< 60 m²) | H52: =IFERROR((VLOOKUP(G52,'Daten Bewohnerstruktur'!$B$3:$C$8,2,FALSE)),"") -> 1 | I52: Eigentum | J52: =IFERROR((VLOOKUP(I52,'Daten Bewohnerstruktur'!$F$3:$G$6,2,FALSE)),"") -> 30 | K52: 31 | L52: =IFERROR((VLOOKUP(K52,'Daten Bewohnerstruktur'!$J$4:$K$18,2,FALSE)),"") -> 1 | M52: =IFERROR((VLOOKUP(K52,'Daten Bewohnerstruktur'!$J$4:$L$18,3,FALSE)),"") -> Personen | O52: =IFERROR((VLOOKUP(L52,'Daten Bewohnerstruktur'!$M$4:$N$15,2,FALSE)),"") -> Single | P52: =IFERROR((VLOOKUP(O52,'Daten Bewohnerstruktur'!$N$4:$O$14,2,FALSE)),"") -> 1 | Q52: 0 | R52: 31 | S52: =IFERROR(((VLOOKUP(R52,'Daten Bewohnerstruktur'!$Q$3:$R$12,2,FALSE))),"") -> 0.087 | U52: =IFERROR(((VLOOKUP(R52,'Daten Bewohnerstruktur'!$Q$3:$U$12,3,FALSE))),"") -> 15 | V52: =IFERROR(((VLOOKUP(R52,'Daten Bewohnerstruktur'!$Q$3:$U$12,4,FALSE))),"") -> - | W52: =IFERROR(((VLOOKUP(R52,'Daten Bewohnerstruktur'!$Q$3:$U$12,5,FALSE))),"") -> 45 | X52: 0 | Y52: 0
E53: 0 | G53: 3 Zimmer-Wohnung (60 - 85 m²) | H53: =IFERROR((VLOOKUP(G53,'Daten Bewohnerstruktur'!$B$3:$C$8,2,FALSE)),"") -> 2 | I53: Eigentum | J53: =IFERROR((VLOOKUP(I53,'Daten Bewohnerstruktur'!$F$3:$G$6,2,FALSE)),"") -> 30 | K53: 32 | L53: =IFERROR((VLOOKUP(K53,'Daten Bewohnerstruktur'!$J$4:$K$18,2,FALSE)),"") -> 1.5 | M53: =IFERROR((VLOOKUP(K53,'Daten Bewohnerstruktur'!$J$4:$L$18,3,FALSE)),"") -> Personen | O53: =IFERROR((VLOOKUP(L53,'Daten Bewohnerstruktur'!$M$4:$N$15,2,FALSE)),"") -> Paar | P53: =IFERROR((VLOOKUP(O53,'Daten Bewohnerstruktur'!$N$4:$O$14,2,FALSE)),"") -> 2 | Q53: 0 | R53: 32 | S53: =IFERROR(((VLOOKUP(R53,'Daten Bewohnerstruktur'!$Q$3:$R$12,2,FALSE))),"") -> 0.08 | U53: =IFERROR(((VLOOKUP(R53,'Daten Bewohnerstruktur'!$Q$3:$U$12,3,FALSE))),"") -> 15 | V53: =IFERROR(((VLOOKUP(R53,'Daten Bewohnerstruktur'!$Q$3:$U$12,4,FALSE))),"") -> - | W53: =IFERROR(((VLOOKUP(R53,'Daten Bewohnerstruktur'!$Q$3:$U$12,5,FALSE))),"") -> 45 | X53: 0 | Y53: 0
E54: 0 | G54: 4 Zimmer-Wohnung (85 - 95 m²) | H54: =IFERROR((VLOOKUP(G54,'Daten Bewohnerstruktur'!$B$3:$C$8,2,FALSE)),"") -> 3 | I54: Eigentum | J54: =IFERROR((VLOOKUP(I54,'Daten Bewohnerstruktur'!$F$3:$G$6,2,FALSE)),"") -> 30 | K54: 33 | L54: =IFERROR((VLOOKUP(K54,'Daten Bewohnerstruktur'!$J$4:$K$18,2,FALSE)),"") -> 2.5 | M54: =IFERROR((VLOOKUP(K54,'Daten Bewohnerstruktur'!$J$4:$L$18,3,FALSE)),"") -> Personen | O54: =IFERROR((VLOOKUP(L54,'Daten Bewohnerstruktur'!$M$4:$N$15,2,FALSE)),"") -> Familie | P54: =IFERROR((VLOOKUP(O54,'Daten Bewohnerstruktur'!$N$4:$O$14,2,FALSE)),"") -> 3 | Q54: 0 | R54: 33 | S54: =IFERROR(((VLOOKUP(R54,'Daten Bewohnerstruktur'!$Q$3:$R$12,2,FALSE))),"") -> 0.05 | U54: =IFERROR(((VLOOKUP(R54,'Daten Bewohnerstruktur'!$Q$3:$U$12,3,FALSE))),"") -> 15 | V54: =IFERROR(((VLOOKUP(R54,'Daten Bewohnerstruktur'!$Q$3:$U$12,4,FALSE))),"") -> - | W54: =IFERROR(((VLOOKUP(R54,'Daten Bewohnerstruktur'!$Q$3:$U$12,5,FALSE))),"") -> 45 | X54: 0 | Y54: 0
E55: 0 | G55: 5 (+) Zimmer-Wohnung (> 105 m²) | H55: =IFERROR((VLOOKUP(G55,'Daten Bewohnerstruktur'!$B$3:$C$8,2,FALSE)),"") -> 4 | I55: Eigentum | J55: =IFERROR((VLOOKUP(I55,'Daten Bewohnerstruktur'!$F$3:$G$6,2,FALSE)),"") -> 30 | K55: 34 | L55: =IFERROR((VLOOKUP(K55,'Daten Bewohnerstruktur'!$J$4:$K$18,2,FALSE)),"") -> 3.5 | M55: =IFERROR((VLOOKUP(K55,'Daten Bewohnerstruktur'!$J$4:$L$18,3,FALSE)),"") -> Personen | O55: =IFERROR((VLOOKUP(L55,'Daten Bewohnerstruktur'!$M$4:$N$15,2,FALSE)),"") -> Familie | P55: =IFERROR((VLOOKUP(O55,'Daten Bewohnerstruktur'!$N$4:$O$14,2,FALSE)),"") -> 3 | Q55: 0 | R55: 33 | S55: =IFERROR(((VLOOKUP(R55,'Daten Bewohnerstruktur'!$Q$3:$R$12,2,FALSE))),"") -> 0.05 | U55: =IFERROR(((VLOOKUP(R55,'Daten Bewohnerstruktur'!$Q$3:$U$12,3,FALSE))),"") -> 15 | V55: =IFERROR(((VLOOKUP(R55,'Daten Bewohnerstruktur'!$Q$3:$U$12,4,FALSE))),"") -> - | W55: =IFERROR(((VLOOKUP(R55,'Daten Bewohnerstruktur'!$Q$3:$U$12,5,FALSE))),"") -> 45 | X55: 0 | Y55: 0
D57: Summe | E57: =SUM(E44:E55) -> 0 | Q57: =SUM(Q44:Q55) -> 0 | X57: =SUM(X44:X55) -> 0 | Y57: =SUM(Y44:Y55) -> 0
D61: Sonderwohnformen
E63: Anzahl der Einwohner | G63: Wohnungstyp | S63: Anteil CS-Nutzer | U63: Nutzer je CS-Fz.
E65: 0 | G65: Studentenwohnheim | S65: =IFERROR(((VLOOKUP(G65,'Daten Bewohnerstruktur'!B15:C18,2,FALSE))),"") -> 0.2 | U65: =IFERROR(((VLOOKUP(S65,'Daten Bewohnerstruktur'!$C$15:$F$18,2,FALSE))),"") -> 15 | V65: =IFERROR(((VLOOKUP(S65,'Daten Bewohnerstruktur'!$C$15:$F$18,3,FALSE))),"") -> - | W65: =IFERROR(((VLOOKUP(S65,'Daten Bewohnerstruktur'!$C$15:$F$18,4,FALSE))),"") -> 45 | Y65: =IFERROR(((SUM(E65*S65/U65))),"") -> 0
E66: 0 | G66: Kinder- und Jugendwohnheim | S66: =IFERROR(((VLOOKUP(G66,'Daten Bewohnerstruktur'!B16:C19,2,FALSE))),"") -> 0 | U66: =IFERROR(((VLOOKUP(S66,'Daten Bewohnerstruktur'!$C$15:$F$18,2,FALSE))),"") -> 15 | V66: =IFERROR(((VLOOKUP(S66,'Daten Bewohnerstruktur'!$C$15:$F$18,3,FALSE))),"") -> - | W66: =IFERROR(((VLOOKUP(S66,'Daten Bewohnerstruktur'!$C$15:$F$18,4,FALSE))),"") -> 45 | Y66: =IFERROR(((SUM(E66*S66/U66))),"") -> 0
E67: 0 | G67: Altenwohnheim | S67: =IFERROR(((VLOOKUP(G67,'Daten Bewohnerstruktur'!B17:C20,2,FALSE))),"") -> 0.005 | U67: =IFERROR(((VLOOKUP(S67,'Daten Bewohnerstruktur'!$C$15:$F$18,2,FALSE))),"") -> 15 | V67: =IFERROR(((VLOOKUP(S67,'Daten Bewohnerstruktur'!$C$15:$F$18,3,FALSE))),"") -> - | W67: =IFERROR(((VLOOKUP(S67,'Daten Bewohnerstruktur'!$C$15:$F$18,4,FALSE))),"") -> 45 | Y67: =IFERROR(((SUM(E67*S67/U67))),"") -> 0
E68: 0 | G68: Pflegeheim | S68: =IFERROR(((VLOOKUP(G68,'Daten Bewohnerstruktur'!B18:C21,2,FALSE))),"") -> 0 | U68: =IFERROR(((VLOOKUP(S68,'Daten Bewohnerstruktur'!$C$15:$F$18,2,FALSE))),"") -> 15 | V68: =IFERROR(((VLOOKUP(S68,'Daten Bewohnerstruktur'!$C$15:$F$18,3,FALSE))),"") -> - | W68: =IFERROR(((VLOOKUP(S68,'Daten Bewohnerstruktur'!$C$15:$F$18,4,FALSE))),"") -> 45 | Y68: =IFERROR(((SUM(E68*S68/U68))),"") -> 0
D70: Summe | E70: =SUM(E65:E68) -> 0 | X70: =SUM(X65:X68) -> 0 | Y70: =SUM(Y65:Y68) -> 0
D74: Flankierende Maßnahmen
E76: Geplante Maßnahmen
G78: =IFERROR((VLOOKUP(E78,'Daten Bewohnerstruktur'!$F$22:$G$27,2,FALSE)),"") ->  | H78: Denken Sie darüber nach weitere geplante Maßnahmen zu ergreifen und diese unter Flankierende Maßnahmen zu bestimmen. So können Sie den Anteil der Personen, die CS-Fahrzeuge nutzen, erhöhen.
G79: =IFERROR((VLOOKUP(E79,'Daten Bewohnerstruktur'!$F$22:$G$27,2,FALSE)),"") -> 
G80: =IFERROR((VLOOKUP(E80,'Daten Bewohnerstruktur'!$F$22:$G$27,2,FALSE)),"") -> 
H81: Weitere Informationen zu den Flankierenden Maßnahmen und ihren Potenzialen finden Sie weiter unten.
G82: =IFERROR((VLOOKUP(E82,'Daten Bewohnerstruktur'!$F$22:$G$27,2,FALSE)),"") -> 
G83: =SUM(G78:G82)+1 -> 1
D90: CS-Fahrzeuge
D93: CS-Fahrzeuge nur für das Quartier
E95: Anzahl der CS-Fahrzeuge bei 15 Nutzern je Kfz | G95: Davon max. e-Fahrzeuge
E97: =TRUNC(SUM((G9/100)*G37)) -> 0 | G97: =IF(SUM(I97=E97),MAX(0,SUM(I97-1)),I97) -> 0 | I97: =TRUNC(SUM(E97*0.85)) -> 0
E99: Anzahl der CS-Fahrzeuge bei 45 Nutzern je Kfz | G99: Davon max. e-Fahrzeuge
E101: =SUM((G9/100)*M37) -> 0 | G101: =IF(SUM(I101=E101),MAX(0,SUM(I101-1)),I101) -> 0 | I101: =TRUNC(SUM(E101*0.85)) -> 0
D105: CS-Fahrzeuge inklusive der Berücksichtigung der Umgebung (600m Einzugsradius)
E107: Anzahl der CS-Fahrzeuge bei 15 Nutzern je Kfz | G107: Davon max. e-Fahrzeuge
E109: =IFERROR((TRUNC(SUM((I16)*0.01*($G$9/100)/15)+E97)),"0") -> 0 | G109: =IF(SUM(I109=E109),MAX(0,SUM(I109-1)),I109) -> 0 | I109: =TRUNC(SUM(E109*0.85)) -> 0
E111: Anzahl der CS-Fahrzeuge bei 45 Nutzern je Kfz | G111: Davon max. e-Fahrzeuge
E113: =IFERROR((TRUNC(SUM((I16)*0.01*($G$9/100)/45)+E101)),"0") -> 0 | G113: =IF(SUM(I113=E113),MAX(0,SUM(I113-1)),I113) -> 0 | I113: =TRUNC(SUM(E113*0.85)) -> 0
F118: Der Moment des Umzugs ist aufgrund der veränderten Wohnlage im Regelfall mit einem Überdenken des eigenen Mobilitätsverhaltens verbunden. Daher ist eine bewusste Unterstützung mit Informationen in diesen Momenten von besonderer Bedeutung. Durch gezieltes Marketing kann das Mobilitätsverhalten hierbei entscheidend beeinflusst werden.
F128: Ein wesentlicher Baustein zur Erhöhung des Carsharing-Nutzeranteils im Quartier ist die Herstellung von qualitativ hochwertigen Fahrradabstellanlagen. Die einfache Zugänglichkeit von Fahrradabstellanlagen spielt bei der Verkehrsmittelwahl eine bedeutende Rolle, um das Fahrrad neben dem ÖPNV als Hauptverkehrsmittel zu etablieren. Grundsätzlich gilt es, die Abstellplätze den jeweiligen Hauseingängen zuzuweisen und im Optimalfall ebenerdig anfahrbar zu gestalten. So ergeben sich grundsätzlich vier mögliche Typologien für die privaten Fahrradabstellanlagen, die in dem Rechner berücksichtigt werden können: eigenständige Kubatur; architektonisch angedockt; in der Tiefgarage; im Baukörper integriert.
F139: Um eine effiziente Mobilität in unterschiedlichen Lebens- und Alltagssituationen sicherzustellen, ist die Idee der Vernetzung unterschiedlicher Mobilitätsangebote ein naheliegender Lösungsansatz. Mobilitätsstationen sind dabei gewissermaßen als Verräumlichung einer multimodalen Mobilitätskultur zu sehen. Als Beispiel sind die in Hamburg erfolgreich implementierten „switchh“ Punkte zu nennen. In Ergänzung zu den bislang etablierten intermodalen Stationen an S- und U-Bahnstationen können Mobilitätsstationen auch als Gegenstück am Start- und Zielpunkt gedacht werden. Im Umfeld des Quartiers beginnen bzw. enden der überwiegende Teil der Wege, weswegen sich derartige Quartiers-Mobilitätsstationen im kollektiven Bewusstsein zu einer potenziellen „Mobilitätsgarantie“ entwickeln könnten.
F149: Das Projekt StadtRAD wurde 2007 initiiert. Seit 2017 gibt es über 200 Fahrradstationen (vgl. StadtRad Hamburg 2016) die kontinuierlich räumlich erweitert werden. Die Stationen liegen insbesondere im innerstädtischen Bereich und an zentralen Umsteigepunkten des ÖPNV. Sie bieten eine schnelle und flexible Alternative im Verkehrsmittelmix und können das Verkehrsverhalten zu Gunsten einer nachhaltigen Mobilität beeinflussen. Die Finanzierung der Stationen erfolgt gewöhnlich seitens der Stadt Hamburg, während der Betrieb von der DB-Rent gewährleistet wird. Für den Bau weiterer Stationen müssen im Haushalt der Stadt entsprechende Gelder berücksichtigt werden. Alternativ sind z.B. private Finanzierungen möglich, mit denen die Herstellungs- und ggf. Betriebskosten abgedeckt werden können.

Sheet Daten Lagefaktor (hidden)
D2: Statistisches Gebiet | E2: Lagefaktor | F2: EW/ha | G2: EW/600m Radius | J2: Maßnahme geplante Rahmenbedingungen | K2: Faktor
E3: 0 | F3: 0 | G3: =SUM(F3*50) -> 0 | K3: 0
D4: 1001 Hamburg-Altstadt | E4: 146.5957723 | F4: 14.59 | G4: =SUM(F4*50) -> 729.5 | J4: zusätzliche ÖPNV-Haltestelle Bus (300m) | K4: 10
D5: 1002 Hamburg-Altstadt | E5: 134.3794579 | F5: 14.59 | G5: 729.5 | J5: zusätzliche ÖPNV-Haltestelle SPNV (500m) | K5: 30
D6: 1003 Hamburg-Altstadt | E6: 146.5957723 | F6: 14.59 | G6: 729.5 | J6: Supermarkt (500m) | K6: 20
D7: 1004 Hamburg-Altstadt | E7: 146.5957723 | F7: 14.59 | G7: 729.5 | J7: Erweiterung der free-floating Geschäftsgebiete | K7: 10
D8: 1005 Hamburg-Altstadt | E8: 146.5957723 | F8: 14.59 | G8: 729.5
D9: 1006 Hamburg-Altstadt | E9: 146.5957723 | F9: 14.59 | G9: 729.5
D10: 1007 Hamburg-Altstadt | E10: 146.5957723 | F10: 14.59 | G10: 729.5
D11: 1008 Hamburg-Altstadt | E11: 183.2447153 | F11: 14.59 | G11: 729.5
D12: 1009 Hamburg-Altstadt | E12: 146.5957723 | F12: 14.59 | G12: 729.5
D13: 1010 Hamburg-Altstadt | E13: 146.5957723 | F13: 14.59 | G13: 729.5
D14: 2001 HafenCity | E14: 134.3794579 | F14: 9.57 | G14: 478.5
D15: 2002 HafenCity | E15: 61.08157178 | F15: 9.57 | G15: 478.5
D16: 3001 Neustadt | E16: 146.5957723 | F16: 56.36 | G16: 2818
D17: 3002 Neustadt | E17: 158.8120866 | F17: 56.36 | G17: 2818
D18: 3003 Neustadt | E18: 146.5957723 | F18: 56.36 | G18: 2818
D19: 3004 Neustadt | E19: 146.5957723 | F19: 56.36 | G19: 2818
D20: 3005 Neustadt | E20: 146.5957723 | F20: 56.36 | G20: 2818
D21: 3006 Neustadt | E21: 183.2447153 | F21: 56.36 | G21: 2818
D22: 3007 Neustadt | E22: 183.2447153 | F22: 56.36 | G22: 2818
D23: 3008 Neustadt | E23: 158.8120866 | F23: 56.36 | G23: 2818
D24: 3009 Neustadt | E24: 146.5957723 | F24: 56.36 | G24: 2818
D25: 3010 Neustadt | E25: 183.2447153 | F25: 56.36 | G25: 2818
D26: 3011 Neustadt | E26: 183.2447153 | F26: 56.36 | G26: 2818
D27: 3012 Neustadt | E27: 183.2447153 | F27: 56.36 | G27: 2818
D28: 3013 Neustadt | E28: 122.1631436 | F28: 56.36 | G28: 2818
D29: 4001 St.Pauli | E29: 134.3794579 | F29: 98.06 | G29: 4903
D30: 4002 St.Pauli | E30: 183.2447153 | F30: 98.06 | G30: 4903
D31: 4003 St.Pauli | E31: 146.5957723 | F31: 98.06 | G31: 4903
D32: 4004 St.Pauli | E32: 183.2447153 | F32: 98.06 | G32: 4903
D33: 4005 St.Pauli | E33: 122.1631436 | F33: 98.06 | G33: 4903
D34: 4006 St.Pauli | E34: 183.2447153 | F34: 98.06 | G34: 4903
D35: 4007 St.Pauli | E35: 171.028401 | F35: 98.06 | G35: 4903
D36: 4008 St.Pauli | E36: 171.028401 | F36: 98.06 | G36: 4903
D37: 4009 St.Pauli | E37: 171.028401 | F37: 98.06 | G37: 4903
D38: 4010 St.Pauli | E38: 134.3794579 | F38: 98.06 | G38: 4903
D39: 5001 St.Georg | E39: 85.51420049 | F39: 58.47 | G39: 2923.5
D40: 5002 St.Georg | E40: 171.028401 | F40: 58.47 | G40: 2923.5
D41: 5003 St.Georg | E41: 134.3794579 | F41: 58.47 | G41: 2923.5
D42: 5004 St.Georg | E42: 171.028401 | F42: 58.47 | G42: 2923.5
D43: 5005 St.Georg | E43: 171.028401 | F43: 58.47 | G43: 2923.5
D44: 5006 St.Georg | E44: 134.3794579 | F44: 58.47 | G44: 2923.5
D45: 5007 St.Georg | E45: 183.2447153 | F45: 58.47 | G45: 2923.5
D46: 5008 St.Georg | E46: 183.2447153 | F46: 58.47 | G46: 2923.5
D47: 5009 St.Georg | E47: 146.5957723 | F47: 58.47 | G47: 2923.5
D48: 6001 Hammerbrook | E48: 146.5957723 | F48: 9.96 | G48: 498
D49: 6002 Hammerbrook | E49: 73.29788614 | F49: 9.96 | G49: 498
D50: 6003 Hammerbrook | E50: 146.5957723 | F50: 9.96 | G50: 498
D51: 6004 Hammerbrook | E51: 109.9468292 | F51: 9.96 | G51: 498
D52: 6005 Hammerbrook | E52: 73.29788614 | F52: 9.96 | G52: 498
D53: 7001 Borgfelde | E53: 158.8120866 | F53: 79.22 | G53: 3961
D54: 7002 Borgfelde | E54: 171.028401 | F54: 79.22 | G54: 3961
D55: 7003 Borgfelde | E55: 158.8120866 | F55: 79.22 | G55: 3961
D56: 8001 Hamm | E56: 171.028401 | F56: 102.35 | G56: 5117.5
D57: 8002 Hamm | E57: 171.028401 | F57: 102.35 | G57: 5117.5
D58: 8003 Hamm | E58: 171.028401 | F58: 102.35 | G58: 5117.5
D59: 8004 Hamm | E59: 171.028401 | F59: 102.35 | G59: 5117.5
D60: 8005 Hamm | E60: 158.8120866 | F60: 102.35 | G60: 5117.5
D61: 8006 Hamm | E61: 158.8120866 | F61: 102.35 | G61: 5117.5
D62: 8007 Hamm | E62: 134.3794579 | F62: 102.35 | G62: 5117.5
D63: 8008 Hamm | E63: 171.028401 | F63: 102.35 | G63: 5117.5
D64: 8009 Hamm | E64: 158.8120866 | F64: 102.35 | G64: 5117.5
D65: 9001 Hamm | E65: 158.8120866 | F65: 102.35 | G65: 5117.5
D66: 9002 Hamm | E66: 158.8120866 | F66: 102.35 | G66: 5117.5
D67: 9003 Hamm | E67: 171.028401 | F67: 102.35 | G67: 5117.5
D68: 9004 Hamm | E68: 158.8120866 | F68: 102.35 | G68: =SUM(F68*50) -> 5117.5
D69: 9005 Hamm | E69: 158.8120866 | F69: 102.35 | G69: 5117.5
D70: 10001 Hamm | E70: 48.86525742 | F70: 102.35 | G70: 5117.5
D71: 10002 Hamm | E71: 73.29788614 | F71: 102.35 | G71: 5117.5
D72: 10003 Hamm | E72: 48.86525742 | F72: 102.35 | G72: 5117.5
D73: 11001 Horn | E73: 122.1631436 | F73: 65.7 | G73: 3285
D74: 11002 Horn | E74: 109.9468292 | F74: 65.7 | G74: 3285
D75: 11003 Horn | E75: 61.08157178 | F75: 65.7 | G75: 3285
D76: 11004 Horn | E76: 85.51420049 | F76: 65.7 | G76: 3285
D77: 11005 Horn | E77: 158.8120866 | F77: 65.7 | G77: 3285
D78: 11006 Horn | E78: 158.8120866 | F78: 65.7 | G78: 3285
D79: 11007 Horn | E79: 171.028401 | F79: 65.7 | G79: 3285
D80: 11008 Horn | E80: 158.8120866 | F80: 65.7 | G80: 3285
D81: 11009 Horn | E81: 171.028401 | F81: 65.7 | G81: 3285
D82: 11010 Horn | E82: 158.8120866 | F82: 65.7 | G82: 3285
D83: 11011 Horn | E83: 73.29788614 | F83: 65.7 | G83: 3285
D84: 11012 Horn | E84: 146.5957723 | F84: 65.7 | G84: 3285
D85: 11013 Horn | E85: 97.73051485 | F85: 65.7 | G85: 3285
D86: 11014 Horn | E86: 146.5957723 | F86: 65.7 | G86: 3285
D87: 11015 Horn | E87: 171.028401 | F87: 65.7 | G87: 3285
D88: 11016 Horn | E88: 61.08157178 | F88: 65.7 | G88: 3285
D89: 12001 Billstedt | E89: 85.51420049 | F89: 41.62 | G89: 2081
D90: 12002 Billstedt | E90: 73.29788614 | F90: 41.62 | G90: 2081
D91: 12003 Billstedt | E91: 73.29788614 | F91: 41.62 | G91: 2081
D92: 12004 Billstedt | E92: 24.43262871 | F92: 41.62 | G92: 2081
D93: 12005 Billstedt | E93: 73.29788614 | F93: 41.62 | G93: 2081
D94: 12006 Billstedt | E94: 36.64894307 | F94: 41.62 | G94: 2081
D95: 12007 Billstedt | E95: 134.3794579 | F95: 41.62 | G95: 2081
D96: 12008 Billstedt | E96: 122.1631436 | F96: 41.62 | G96: 2081
D97: 12009 Billstedt | E97: 85.51420049 | F97: 41.62 | G97: 2081
D98: 12010 Billstedt | E98: 97.73051485 | F98: 41.62 | G98: 2081
D99: 12011 Billstedt | E99: 122.1631436 | F99: 41.62 | G99: 2081
D100: 12012 Billstedt | E100: 61.08157178 | F100: 41.62 | G100: 2081
D101: 12013 Billstedt | E101: 109.9468292 | F101: 41.62 | G101: 2081
D102: 12014 Billstedt | E102: 122.1631436 | F102: 41.62 | G102: 2081
D103: 12015 Billstedt | E103: 109.9468292 | F103: 41.62 | G103: 2081
D104: 12016 Billstedt | E104: 122.1631436 | F104: 41.62 | G104: 2081
D105: 12017 Billstedt | E105: 109.9468292 | F105: 41.62 | G105: 2081
D106: 12018 Billstedt | E106: 73.29788614 | F106: 41.62 | G106: 2081
D107: 12019 Billstedt | E107: 122.1631436 | F107: 41.62 | G107: 2081
D108: 12020 Billstedt | E108: 97.73051485 | F108: 41.62 | G108: 2081
D109: 12021 Billstedt | E109: 48.86525742 | F109: 41.62 | G109: 2081
D110: 12022 Billstedt | E110: 85.51420049 | F110: 41.62 | G110: 2081
D111: 12023 Billstedt | E111: 134.3794579 | F111: 41.62 | G111: 2081
D112: 12024 Billstedt | E112: 48.86525742 | F112: 41.62 | G112: 2081
D113: 12025 Billstedt | E113: 24.43262871 | F113: 41.62 | G113: 2081
D114: 12026 Billstedt | E114: 61.08157178 | F114: 41.62 | G114: 2081
D115: 12027 Billstedt | E115: 134.3794579 | F115: 41.62 | G115: 2081
D116: 12028 Billstedt | E116: 134.3794579 | F116: 41.62 | G116: 2081
D117: 12029 Billstedt | E117: 134.3794579 | F117: 41.62 | G117: 2081
D118: 13001 Billbrook | E118: 24.43262871 | F118: 3.55 | G118: 177.5
D119: 13002 Billbrook | E119: 24.43262871 | F119: 3.55 | G119: 177.5
D120: 14001 Rothenburgsort | E120: 24.43262871 | F120: 12.4 | G120: 620
D121: 14002 Rothenburgsort | E121: 73.29788614 | F121: 12.4 | G121: 620
D122: 14003 Rothenburgsort | E122: 122.1631436 | F122: 12.4 | G122: 620
D123: 14004 Rothenburgsort | E123: 85.51420049 | F123: 12.4 | G123: 620
D124: 14005 Rothenburgsort | E124: 48.86525742 | F124: 12.4 | G124: 620
D125: 15001 Veddel | E125: 122.1631436 | F125: 10.78 | G125: 539
D126: 15002 Veddel | E126: 24.43262871 | F126: 10.78 | G126: 539
D127: 16001 Wilhelmsburg | E127: 24.43262871 | F127: 15.25 | G127: 762.5
D128: 16002 Wilhelmsburg | E128: 12.21631436 | F128: 15.25 | G128: 762.5
D129: 16003 Wilhelmsburg | E129: 48.86525742 | F129: 15.25 | G129: 762.5
D130: 16004 Wilhelmsburg | E130: 134.3794579 | F130: 15.25 | G130: 762.5
D131: 16005 Wilhelmsburg | E131: 61.08157178 | F131: 15.25 | G131: 762.5
D132: 16006 Wilhelmsburg | E132: 24.43262871 | F132: 15.25 | G132: =SUM(F132*50) -> 762.5
D133: 16007 Wilhelmsburg | E133: 134.3794579 | F133: 15.25 | G133: 762.5
D134: 16008 Wilhelmsburg | E134: 122.1631436 | F134: 15.25 | G134: 762.5
D135: 16009 Wilhelmsburg | E135: 146.5957723 | F135: 15.25 | G135: 762.5
D136: 16010 Wilhelmsburg | E136: 122.1631436 | F136: 15.25 | G136: 762.5
D137: 16011 Wilhelmsburg | E137: 48.86525742 | F137: 15.25 | G137: 762.5
D138: 16012 Wilhelmsburg | E138: 24.43262871 | F138: 15.25 | G138: 762.5
D139: 16013 Wilhelmsburg | E139: 122.1631436 | F139: 15.25 | G139: 762.5
D140: 16014 Wilhelmsburg | E140: 85.51420049 | F140: 15.25 | G140: 762.5
D141: 16015 Wilhelmsburg | E141: 109.9468292 | F141: 15.25 | G141: 762.5
D142: 16016 Wilhelmsburg | E142: 146.5957723 | F142: 15.25 | G142: 762.5
D143: 16017 Wilhelmsburg | E143: 134.3794579 | F143: 15.25 | G143: 762.5
D144: 16018 Wilhelmsburg | E144: 24.43262871 | F144: 15.25 | G144: 762.5
D145: 16019 Wilhelmsburg | E145: 36.64894307 | F145: 15.25 | G145: 762.5
D146: 16020 Wilhelmsburg | E146: 24.43262871 | F146: 15.25 | G146: 762.5
D147: 16021 Wilhelmsburg | E147: 97.73051485 | F147: 15.25 | G147: 762.5
D148: 16022 Wilhelmsburg | E148: 73.29788614 | F148: 15.25 | G148: 762.5
D149: 16023 Wilhelmsburg | E149: 97.73051485 | F149: 15.25 | G149: 762.5
D150: 16024 Wilhelmsburg | E150: 36.64894307 | F150: 15.25 | G150: 762.5
D151: 17001 KleinerGrasbrook | E151: 24.43262871 | F151: 1.15 | G151: 57.5
D152: 17002 KleinerGrasbrook | E152: 48.86525742 | F152: 1.15 | G152: 57.5
D153: 17003 KleinerGrasbrook | E153: 48.86525742 | F153: 1.15 | G153: 57.5
D154: 18001 Steinwerder | E154: 12.21631436 | F154: 1.15 | G154: 57.5
D155: 18002 Steinwerder | E155: 12.21631436 | F155: 1.15 | G155: 57.5
D156: 18003 Steinwerder | E156: 24.43262871 | F156: 1.15 | G156: 57.5
D157: 19001 Waltershof | E157: 0 | F157: 4.1 | G157: 205
D158: 19002 Waltershof | E158: 0 | F158: 4.1 | G158: 205
D159: 19003 Waltershof | E159: 12.21631436 | F159: 4.1 | G159: 205
D160: 20001 Finkenwerder | E160: 12.21631436 | F160: 4.1 | G160: 205
D161: 20002 Finkenwerder | E161: 24.43262871 | F161: 4.1 | G161: 205
D162: 20003 Finkenwerder | E162: 48.86525742 | F162: 4.1 | G162: 205
D163: 20004 Finkenwerder | E163: 24.43262871 | F163: 4.1 | G163: 205
D164: 20005 Finkenwerder | E164: 36.64894307 | F164: 4.1 | G164: 205
D165: 20006 Finkenwerder | E165: 24.43262871 | F165: 4.1 | G165: 205
D166: 20007 Finkenwerder | E166: 48.86525742 | F166: 4.1 | G166: 205
D167: 20008 Finkenwerder | E167: 85.51420049 | F167: 4.1 | G167: 205
D168: 20009 Finkenwerder | E168: 73.29788614 | F168: 4.1 | G168: 205
D169: 21001 Altona-Altstadt | E169: 183.2447153 | F169: 104.86 | G169: 5243
D170: 21002 Altona-Altstadt | E170: 158.8120866 | F170: 104.86 | G170: 5243
D171: 21003 Altona-Altstadt | E171: 183.2447153 | F171: 104.86 | G171: 5243
D172: 21004 Altona-Altstadt | E172: 146.5957723 | F172: 104.86 | G172: 5243
D173: 21005 Altona-Altstadt | E173: 158.8120866 | F173: 104.86 | G173: 5243
D174: 21006 Altona-Altstadt | E174: 158.8120866 | F174: 104.86 | G174: 5243
D175: 21007 Altona-Altstadt | E175: 183.2447153 | F175: 104.86 | G175: 5243
D176: 21008 Altona-Altstadt | E176: 183.2447153 | F176: 104.86 | G176: 5243
D177: 21009 Altona-Altstadt | E177: 171.028401 | F177: 104.86 | G177: 5243
D178: 21010 Altona-Altstadt | E178: 97.73051485 | F178: 104.86 | G178: 5243
D179: 21011 Altona-Altstadt | E179: 171.028401 | F179: 104.86 | G179: 5243
D180: 21012 Altona-Altstadt | E180: 122.1631436 | F180: 104.86 | G180: 5243
D181: 22001 Sternschanze | E181: 158.8120866 | F181: 143.21 | G181: 7160.5
D182: 22002 Sternschanze | E182: 183.2447153 | F182: 143.21 | G182: 7160.5
D183: 22003 Sternschanze | E183: 183.2447153 | F183: 143.21 | G183: 7160.5
D184: 22004 Sternschanze | E184: 146.5957723 | F184: 143.21 | G184: 7160.5
D185: 23001 Altona-Nord | E185: 146.5957723 | F185: 100.49 | G185: 5024.5
D186: 23002 Altona-Nord | E186: 183.2447153 | F186: 100.49 | G186: 5024.5
D187: 23003 Altona-Nord | E187: 183.2447153 | F187: 100.49 | G187: 5024.5
D188: 23004 Altona-Nord | E188: 183.2447153 | F188: 100.49 | G188: 5024.5
D189: 23005 Altona-Nord | E189: 183.2447153 | F189: 100.49 | G189: 5024.5
D190: 23006 Altona-Nord | E190: 183.2447153 | F190: 100.49 | G190: 5024.5
D191: 23007 Altona-Nord | E191: 171.028401 | F191: 100.49 | G191: 5024.5
D192: 23008 Altona-Nord | E192: 97.73051485 | F192: 100.49 | G192: 5024.5
D193: 23009 Altona-Nord | E193: 171.028401 | F193: 100.49 | G193: 5024.5
D194: 23010 Altona-Nord | E194: 183.2447153 | F194: 100.49 | G194: 5024.5
D195: 23011 Altona-Nord | E195: 183.2447153 | F195: 100.49 | G195: 5024.5
D196: 24001 Ottensen | E196: 183.2447153 | F196: 122.99 | G196: =SUM(F196*50) -> 6149.5
D197: 24002 Ottensen | E197: 134.3794579 | F197: 122.99 | G197: 6149.5
D198: 24003 Ottensen | E198: 134.3794579 | F198: 122.99 | G198: 6149.5
D199: 24004 Ottensen | E199: 146.5957723 | F199: 122.99 | G199: 6149.5
D200: 24005 Ottensen | E200: 109.9468292 | F200: 122.99 | G200: 6149.5
D201: 24006 Ottensen | E201: 109.9468292 | F201: 122.99 | G201: 6149.5
... 744 more rows

Sheet Daten Bewohnerstruktur (hidden)
B2: Wohnungsgröße | D2: Durchschnittliche Bewohner | F2: Wohnungstyp | G2: Code | H2: Faktor | J2: Belegungsdichte | M2: Haushaltstyp | O2: Code | Q2: Schlüssel Bewohner CS-Anteil | S2: Nutzer je CS-Fz | U2: Nutzer je CS-Fz | V2: Potentialgruppe in Bezug auf Haushaltstyp | W2: Anteil CS-Nutzer in Bezug auf Wohnungstyp
C3: 0 | D3: 0 | L3: Personen
B4: 1-2 Zimmer-Wohnung (< 60 m²) | C4: 1 | D4: 1 | F4: Gefördert | G4: 10 | H4: 1.5 | J4: 11 | K4: =TRUNC(SUM(D4*$H$4),1) -> 1.5 | L4: Personen | M4: 1 | N4: Single | O4: 1 | Q4: 11 | R4: =SUM(V4*W4*TOOL!G83) -> 0.0261 | S4: 15 | T4: - | U4: 45 | V4: 0.87 | W4: 0.03
B5: 3 Zimmer-Wohnung (60 - 85 m²) | C5: 2 | D5: 1.5 | F5: Frei finanziert | G5: 20 | H5: 1.3 | J5: 12 | K5: =TRUNC(SUM(D5*$H$4),1) -> 2.2 | L5: Personen | M5: 1.3 | N5: Single | O5: 1 | Q5: 12 | R5: =SUM(V5*W5*TOOL!G83) -> 0.024 | S5: 15 | T5: - | U5: 45 | V5: 0.8 | W5: 0.03
B6: 4 Zimmer-Wohnung (85 - 95 m²) | C6: 3 | D6: 2.5 | F6: Eigentum | G6: 30 | H6: 1 | J6: 13 | K6: 3.7 | L6: Personen | M6: 1.5 | N6: Paar | O6: 2 | Q6: 13 | R6: =SUM(V6*W6*TOOL!G83) -> 0.015 | S6: 15 | T6: - | U6: 45 | V6: 0.5 | W6: 0.03
B7: 5 (+) Zimmer-Wohnung (> 105 m²) | C7: 4 | D7: 3.5 | J7: 14 | K7: 5.2 | L7: Personen | M7: 1.9 | N7: Paar | O7: 2 | Q7: 21 | R7: =SUM(V7*W7*TOOL!G83) -> 0.087 | S7: 15 | T7: - | U7: 45 | V7: 0.87 | W7: 0.1
M8: 2.2 | N8: Paar | O8: 2 | Q8: 22 | R8: =SUM(V8*W8*TOOL!G83) -> 0.08 | S8: 15 | T8: - | U8: 45 | V8: 0.8 | W8: 0.1
J9: 21 | K9: =TRUNC(SUM(D4*$H$5),1) -> 1.3 | L9: Personen | M9: 2.5 | N9: Familie | O9: 3 | Q9: 23 | R9: =SUM(V9*W9*TOOL!G83) -> 0.05 | S9: 15 | T9: - | U9: 45 | V9: 0.5 | W9: 0.1
J10: 22 | K10: =TRUNC(SUM(D5*$H$5),1) -> 1.9 | L10: Personen | M10: 3.2 | N10: Familie | O10: 3 | Q10: 31 | R10: =SUM(V10*W10*TOOL!G83) -> 0.087 | S10: 15 | T10: - | U10: 45 | V10: 0.87 | W10: 0.1
J11: 23 | K11: 3.2 | L11: Personen | M11: 3.5 | N11: Familie | O11: 3 | Q11: 32 | R11: =SUM(V11*W11*TOOL!G83) -> 0.08 | S11: 15 | T11: - | U11: 45 | V11: 0.8 | W11: 0.1
J12: 24 | K12: 4.5 | L12: Personen | M12: 3.7 | N12: Familie | O12: 3 | Q12: 33 | R12: =SUM(V12*W12*TOOL!G83) -> 0.05 | S12: 15 | T12: - | U12: 45 | V12: 0.5 | W12: 0.1
B13: Sonstiger Wohnungstyp | C13: Schlüssel Bewohner | M13: 3.9 | N13: Familie | O13: 3
J14: 31 | K14: =TRUNC(SUM(D4*$H$6),1) -> 1 | L14: Personen | M14: 4.5 | N14: Familie | O14: 3
B15: Studentenwohnheim | C15: 0.2 | D15: 15 | E15: - | F15: 45 | J15: 32 | K15: =TRUNC(SUM(D5*$H$6),1) -> 1.5 | L15: Personen | M15: 5.2 | N15: Familie | O15: 3
B16: Kinder- und Jugendwohnheim | C16: 0 | D16: 15 | E16: - | F16: 45 | J16: 33 | K16: 2.5 | L16: Personen
B17: Altenwohnheim | C17: 0.005 | D17: 15 | E17: - | F17: 45 | J17: 34 | K17: 3.5 | L17: Personen
B18: Pflegeheim | C18: 0 | D18: 15 | E18: - | F18: 45
F21: Maßnahmen flankierende Maßnahmen | G21: Faktor
G22: 0
F23: Neubürgerpaket/Informationsleitsystem | G23: 0.3
F24: hochwertige Fahrradabstellanlagen | G24: 0.1
F25: Mobilitätsstation | G25: 0.2
F26: ergänzende StadtRad-Station | G26: 0.05
